bitfinex/quotes_BTCUSD_20220105
["timestamp","ask_amount","ask_price","bid_price","bid_amount"]
[1641360686071,7.68332683,46318.0,46317.0,0.02932166]
[1641360686474,7.68461574,46318.0,46317.0,0.02932166]
[1641360686923,7.68461574,46318.0,46317.0,0.00132166]
[1641360687725,8.41941589,46318.0,46317.0,0.04832166]
[1641360687929,9.05367189,46318.0,46317.0,0.04832166]
[1641360688123,9.44740624,46318.0,46314.0,0.17]
[1641360688323,0.00120513,46315.0,46314.0,0.17]
[1641360688527,0.64694648,46315.0,46314.0,0.17]
[1641360688724,0.40810811,46315.0,46314.0,0.17]
[1641360688923,0.74853497,46315.0,46314.0,0.17]
[1641360689322,0.79853497,46315.0,46314.0,0.17]
[1641360689527,2.06753518,46315.0,46314.0,0.17]
[1641360689823,2.08053518,46315.0,46314.0,0.17054423]
[1641360690223,1.98053518,46315.0,46314.0,0.17054423]
[1641360691075,1.96753518,46315.0,46314.0,0.17054423]
[1641360691268,1.91923518,46315.0,46314.0,0.17054423]
[1641360691669,1.95023518,46315.0,46314.0,0.17054423]
[1641360692968,1.91923518,46315.0,46314.0,0.17054423]
[1641360693771,1.94023518,46315.0,46314.0,0.17054423]
[1641360694316,1.9464458,46315.0,46314.0,0.17054423]
[1641360694516,2.0464458,46315.0,46314.0,0.17054423]
[1641360695217,2.0254458,46315.0,46314.0,0.17054423]
[1641360695819,0.30552145,46301.0,46297.0,0.0046]
[1641360696123,0.05400526,46299.0,46298.0,0.355426]
[1641360696920,0.79903284,46299.0,46298.0,0.355426]
[1641360697321,0.79903284,46299.0,46296.0,0.054005]
[1641360697820,0.50405541,46299.0,46296.0,0.054005]
[1641360698077,0.30552145,46301.0,46297.0,0.40943]
[1641360698278,7.25394309,46300.0,46297.0,0.463428]
[1641360698477,7.25394309,46300.0,46297.0,0.053998]
[1641360699277,0.34637941,46299.0,46297.0,0.053998]
[1641360699678,0.34637941,46299.0,46298.0,0.393998]
[1641360700278,0.34637941,46299.0,46298.0,0.05450632]
[1641360700680,0.34637941,46299.0,46298.0,0.94450632]
[1641360701380,0.35260816,46299.0,46298.0,0.94450632]
[1641360701580,0.35578514,46299.0,46298.0,0.94450632]
[1641360702019,0.35578514,46299.0,46298.0,1.11450632]
[1641360702918,0.35578514,46299.0,46298.0,0.22450632]
[1641360703318,0.35578514,46299.0,46298.0,0.05450632]
[1641360711925,0.42599238,46290.0,46289.0,3.33839429]
[1641360712125,0.42599238,46290.0,46289.0,3.40622029]
[1641360712325,0.42599238,46290.0,46289.0,0.355426]
[1641360712526,0.42916936,46290.0,46289.0,0.355426]
[1641360712724,0.42916936,46290.0,46289.0,0.054001]
[1641360712926,0.74338225,46290.0,46289.0,0.054001]
[1641360713669,0.74338225,46290.0,46289.0,0.564001]
[1641360713872,0.74338225,46290.0,46289.0,0.054001]
[1641360714671,0.74338225,46290.0,46289.0,0.344001]
[1641360715070,0.74338225,46290.0,46289.0,0.054001]
[1641360716475,0.42916936,46290.0,46289.0,0.564001]
[1641360716671,0.42916936,46290.0,46289.0,0.919427]
[1641360718525,0.42916936,46290.0,46289.0,0.969427]
[1641360719129,0.42916936,46290.0,46289.0,0.919427]
[1641360720571,0.42916936,46290.0,46289.0,1.479427]
[1641360720771,0.42916936,46290.0,46289.0,3.56396135]
[1641360720972,5.52e-06,46295.0,46291.0,0.00625782]
[1641360721172,0.72977814,46304.0,46296.0,0.00783619]
[1641360721371,0.72977814,46304.0,46300.0,2.489326]
[1641360721572,0.60814845,46307.0,46301.0,0.00657123]
[1641360721776,0.60814845,46307.0,46306.0,1.6539]
[1641360721970,0.60814845,46307.0,46306.0,1.7522]
[1641360722171,0.25172351,46315.0,46306.0,1.856178]
[1641360722372,0.00064395,46315.0,46312.0,0.6039]
[1641360722572,0.00064395,46315.0,46313.0,0.0483]
[1641360723075,0.32497013,46316.0,46313.0,0.0483]
[1641360723275,0.004,46319.0,46315.0,0.355426]
[1641360723473,0.004,46319.0,46316.0,0.27134282]
[1641360723673,0.004,46319.0,46317.0,0.0483]
[1641360723973,0.004,46319.0,46318.0,0.21564228]
[1641360724174,0.004,46319.0,46318.0,0.0483]
[1641360724836,0.0089577,46319.0,46318.0,0.0483]
[1641360725837,0.0089577,46319.0,46318.0,0.0663]
[1641360727040,0.0089577,46319.0,46318.0,0.0483]
[1641360727837,0.0089577,46319.0,46318.0,0.0703]
[1641360729068,0.0089577,46319.0,46318.0,0.0483]
[1641360729871,0.0089577,46319.0,46318.0,0.0693]
[1641360730372,0.0089577,46319.0,46318.0,0.28545382]
[1641360731172,0.0089577,46319.0,46318.0,0.26445382]
[1641360731819,0.0089577,46319.0,46318.0,0.28945382]
[1641360732018,0.0089577,46319.0,46318.0,0.28989898]
[1641360733223,0.0089577,46319.0,46318.0,0.26489898]
[1641360733822,0.0089577,46319.0,46318.0,0.07474516]
[1641360735026,0.0089577,46319.0,46318.0,0.04874516]
[1641360735973,0.0089577,46319.0,46318.0,0.07474516]
[1641360737174,0.0089577,46319.0,46318.0,0.04874516]
[1641360737975,0.0089577,46319.0,46318.0,0.07674516]
[1641360739174,0.0089577,46319.0,46318.0,0.04874516]
[1641360739820,0.0089577,46319.0,46318.0,0.07274516]
[1641360741023,0.0089577,46319.0,46318.0,0.04874516]
[1641360741923,0.0089577,46319.0,46318.0,0.07374516]
[1641360743172,0.0089577,46319.0,46318.0,0.04874516]
[1641360743872,0.0089577,46319.0,46318.0,0.07374516]
[1641360745273,0.0089577,46319.0,46318.0,0.04874516]
[1641360745973,0.0089577,46319.0,46318.0,0.07374516]
[1641360747124,0.0089577,46319.0,46318.0,0.63874516]
[1641360747326,0.0089577,46319.0,46318.0,0.99417116]
[1641360747924,0.0089577,46319.0,46318.0,1.01517116]
[1641360748124,0.0089577,46319.0,46318.0,0.42517116]
[1641360748424,0.0089577,46319.0,46318.0,0.6607243]
[1641360751481,0.0039577,46319.0,46318.0,0.6607243]
[1641360751673,0.0039577,46319.0,46318.0,0.6397243]
[1641360751874,0.0039577,46319.0,46318.0,0.6597243]
[1641360752075,0.0039577,46319.0,46318.0,0.42417116]
[1641360752476,0.00878889,46319.0,46318.0,0.42417116]
[1641360753177,0.00878889,46319.0,46318.0,0.40417116]
[1641360753375,0.00878889,46319.0,46318.0,0.61847144]
[1641360753977,0.00878889,46319.0,46318.0,0.63947144]
[1641360755127,0.00878889,46319.0,46318.0,0.61847144]
[1641360755825,0.00878889,46319.0,46318.0,0.63947144]
[1641360757024,0.00878889,46319.0,46318.0,0.42517116]
[1641360757225,0.00878889,46319.0,46318.0,0.40417116]
[1641360757827,0.00878889,46319.0,46318.0,0.42817116]
[1641360759177,0.00878889,46319.0,46318.0,0.40417116]
[1641360759879,0.00878889,46319.0,46318.0,0.42817116]
[1641360761079,0.00878889,46319.0,46318.0,0.40417116]
[1641360761484,0.00878889,46319.0,46318.0,0.61974265]
[1641360761681,0.00878889,46319.0,46318.0,0.40417116]
[1641360761935,0.00878889,46319.0,46318.0,0.42717116]
[1641360763132,0.00878889,46319.0,46318.0,0.40417116]
[1641360763932,0.00878889,46319.0,46318.0,0.42917116]
[1641360765135,0.00878889,46319.0,46318.0,0.40417116]
[1641360765977,0.00878889,46319.0,46318.0,0.42917116]
[1641360767079,0.00878889,46319.0,46318.0,0.40417116]
[1641360767479,0.00878889,46319.0,46318.0,0.04874516]
[1641360767978,0.00878889,46319.0,46318.0,0.07674516]
[1641360769181,0.00878889,46319.0,46318.0,0.04874516]
[1641360769829,0.00878889,46319.0,46318.0,0.00044516]
[1641360770129,1.30546987,46319.0,46318.0,0.02744516]
[1641360770327,1.35546987,46319.0,46318.0,0.02744516]
[1641360770528,1.45546987,46319.0,46318.0,0.02744516]
[1641360770728,0.51546987,46319.0,46318.0,4.516e-05]
[1641360771127,0.51546987,46319.0,46303.0,0.50441658]
[1641360771335,0.26165121,46310.0,46303.0,0.2924]
[1641360771529,0.26165121,46310.0,46306.0,0.053992]
[1641360771726,0.5163879,46310.0,46306.0,0.053992]
[1641360771928,0.30295978,46308.0,46306.0,0.107984]
[1641360772328,0.35695201,46308.0,46306.0,0.107984]
[1641360773183,0.7878604,46308.0,46306.0,0.107984]
[1641360773483,0.7878604,46308.0,46303.0,0.2876]
[1641360773683,0.05399806,46306.0,46299.0,0.005]
[1641360773886,0.16199512,46307.0,46306.0,0.065]
[1641360774285,0.10799612,46307.0,46306.0,0.065]
[1641360774684,0.10799612,46307.0,46306.0,0.06541487]
[1641360775284,0.10799612,46307.0,46306.0,0.00041487]
[1641360775884,0.10799612,46307.0,46306.0,0.01941487]
[1641360777227,0.10799612,46307.0,46306.0,0.00041487]
[1641360777526,0.11282866,46307.0,46306.0,0.00041487]
[1641360777927,0.11282866,46307.0,46306.0,0.02141487]
[1641360779129,0.00483254,46307.0,46306.0,0.02141487]
[1641360779330,0.00483254,46307.0,46306.0,0.00041487]
[1641360780030,0.00483254,46307.0,46306.0,0.02141487]
[1641360781187,0.00483254,46307.0,46306.0,0.00041487]
[1641360781982,0.00483254,46307.0,46306.0,0.02441487]
[1641360783182,0.00483254,46307.0,46306.0,0.00041487]
[1641360783982,0.00483254,46307.0,46306.0,0.02541487]
[1641360785229,0.00483254,46307.0,46306.0,0.00041487]
[1641360785928,0.00483254,46307.0,46306.0,0.02341487]
[1641360787331,0.00483254,46307.0,46306.0,0.00041487]
[1641360788179,0.00483254,46307.0,46306.0,0.02441487]
[1641360789284,0.00483254,46307.0,46306.0,0.00041487]
[1641360790080,0.00483254,46307.0,46306.0,0.02741487]
[1641360790781,0.33263173,46307.0,46306.0,0.02741487]
[1641360791381,0.00483254,46307.0,46306.0,0.00041487]
[1641360792033,0.00483254,46307.0,46306.0,0.02441487]
[1641360792731,0.28408012,46307.0,46306.0,0.02441487]
[1641360793330,0.28408012,46307.0,46306.0,0.00041487]
[1641360793533,0.00483254,46307.0,46306.0,0.00041487]
[1641360794031,0.00483254,46307.0,46306.0,0.02341487]
[1641360794633,0.29296451,46307.0,46306.0,0.02341487]
[1641360795235,0.29296451,46307.0,46306.0,0.00041487]
[1641360795435,0.00483254,46307.0,46306.0,0.00041487]
[1641360796079,0.00483254,46307.0,46306.0,0.02541487]
[1641360796679,0.32914979,46307.0,46306.0,0.02541487]
[1641360797278,0.00483254,46307.0,46306.0,0.00041487]
[1641360798079,0.00483254,46307.0,46306.0,0.02341487]
[1641360798281,0.24961753,46307.0,46306.0,0.02341487]
[1641360799327,0.00483254,46307.0,46306.0,0.00041487]
[1641360800126,0.00483254,46307.0,46306.0,0.02241487]
[1641360800729,0.32418646,46307.0,46306.0,0.02241487]
[1641360801328,0.00483254,46307.0,46306.0,0.00041487]
[1641360802029,0.00483254,46307.0,46306.0,0.02541487]
[1641360802629,0.25238642,46307.0,46306.0,0.02541487]
[1641360803284,0.25238642,46307.0,46306.0,0.00041487]
[1641360803687,0.00483254,46307.0,46306.0,0.00041487]
[1641360804083,0.00483254,46307.0,46306.0,0.10341487]
[1641360804889,0.30802265,46307.0,46306.0,0.10341487]
[1641360805287,0.30802265,46307.0,46306.0,0.00041487]
[1641360805485,0.00483254,46307.0,46306.0,0.00041487]
[1641360806088,0.00483254,46307.0,46306.0,0.10141487]
[1641360808031,0.00483254,46307.0,46306.0,0.20241487]
[1641360810038,0.00483254,46307.0,46306.0,0.30441487]
[1641360811285,0.00483254,46307.0,46306.0,0.20341487]
[1641360811987,0.00483254,46307.0,46306.0,0.30541487]
[1641360812886,0.00483254,46307.0,46306.0,0.00041487]
[1641360814187,0.33264985,46307.0,46306.0,0.10441487]
[1641360814434,0.33264985,46307.0,46306.0,0.00041487]
[1641360814836,0.70774585,46307.0,46306.0,0.00041487]
[1641360815034,0.37992854,46307.0,46306.0,0.00041487]
[1641360816035,0.38492854,46307.0,46306.0,0.02741487]
[1641360816435,0.36525854,46307.0,46306.0,0.02741487]
[1641360816634,1.09383495,46307.0,46306.0,0.02741487]
[1641360817234,1.09383495,46307.0,46306.0,0.00041487]
[1641360817437,0.36025854,46307.0,46306.0,0.00041487]
[1641360818082,1.09183495,46307.0,46306.0,0.02741487]
[1641360819086,0.36325854,46307.0,46306.0,0.02741487]
[1641360819885,0.36025854,46307.0,46306.0,0.00041487]
[1641360820086,0.36825854,46307.0,46306.0,0.00041487]
[1641360820391,0.9764704,46307.0,46306.0,0.00041487]
[1641360821388,0.9684704,46307.0,46306.0,0.00041487]
[1641360822035,0.6210444,46307.0,46306.0,0.00041487]
[1641360822635,0.9764704,46307.0,46306.0,0.00041487]
[1641360823041,0.36825854,46307.0,46306.0,0.00041487]
[1641360823236,0.33902736,46307.0,46306.0,0.00041487]
[1641360824037,0.34502736,46307.0,46306.0,0.02441487]
[1641360825590,0.33902736,46307.0,46306.0,0.00041487]
[1641360825788,0.44029709,46307.0,46306.0,0.00041487]
[1641360826193,1.05750895,46307.0,46306.0,0.01941487]
[1641360826990,1.06234149,46307.0,46306.0,0.01941487]
[1641360827287,1.05334149,46307.0,46306.0,0.00041487]
[1641360827689,0.44512963,46307.0,46306.0,0.00041487]
[1641360828192,0.45412963,46307.0,46306.0,0.00041487]
[1641360828588,0.11510227,46307.0,46306.0,0.00041487]
[1641360828791,0.01510227,46307.0,46306.0,0.00041487]
[1641360828989,0.01383254,46307.0,46306.0,0.00041487]
[1641360829434,0.00483254,46307.0,46306.0,0.00041487]
[1641360830035,0.01483254,46307.0,46306.0,0.00041487]
[1641360830637,0.00983254,46307.0,46306.0,0.00041487]
[1641360831536,0.53890163,46308.0,46306.0,0.00041487]
[1641360832137,0.01,46307.0,46306.0,0.00041487]
[1641360832736,0.01483248,46307.0,46306.0,0.00041487]
[1641360833389,0.00483248,46307.0,46306.0,0.00041487]
[1641360834188,0.01483248,46307.0,46306.0,0.00041487]
[1641360835390,0.00483248,46307.0,46306.0,0.00041487]
[1641360836192,0.01483248,46307.0,46306.0,0.00041487]
[1641360838234,0.02483248,46307.0,46306.0,0.00041487]
[1641360839434,0.00483248,46307.0,46306.0,0.00041487]
[1641360840234,0.01483248,46307.0,46306.0,0.00041487]
[1641360841291,0.00483248,46307.0,46306.0,0.00041487]
[1641360842084,0.01483248,46307.0,46306.0,0.00041487]
[1641360842784,0.37030148,46307.0,46306.0,0.00041487]
[1641360843383,1.08887789,46307.0,46306.0,0.00041487]
[1641360844183,0.37030148,46307.0,46306.0,0.00041487]
[1641360845236,0.01483248,46307.0,46306.0,0.00041487]
[1641360845434,0.00483248,46307.0,46306.0,0.00041487]
[1641360846237,0.01483248,46307.0,46306.0,0.00041487]
[1641360847038,0.74340889,46307.0,46306.0,0.00041487]
[1641360847438,0.73340889,46307.0,46306.0,0.00041487]
[1641360848084,1.08887789,46307.0,46306.0,0.00041487]
[1641360848286,1.09887789,46307.0,46306.0,0.00041487]
[1641360848885,0.74340889,46307.0,46306.0,0.00041487]
[1641360849288,0.01483248,46307.0,46306.0,0.00041487]
[1641360849485,0.00483248,46307.0,46306.0,0.00041487]
[1641360849686,0.36030148,46307.0,46306.0,0.00041487]
[1641360850286,0.37030148,46307.0,46306.0,0.00041487]
[1641360851388,0.36030148,46307.0,46306.0,0.00041487]
[1641360851588,0.00483248,46307.0,46306.0,0.00041487]
[1641360852231,0.01483248,46307.0,46306.0,0.00041487]
[1641360853433,0.00483248,46307.0,46306.0,0.00041487]
[1641360854133,0.01483248,46307.0,46306.0,0.00041487]
[1641360854536,0.37030148,46307.0,46306.0,0.00041487]
[1641360855583,0.36030148,46307.0,46306.0,0.00041487]
[1641360856082,0.00483248,46307.0,46306.0,0.00041487]
[1641360856283,0.01483248,46307.0,46306.0,0.00041487]
[1641360857583,0.00483248,46307.0,46306.0,0.00041487]
[1641360858182,0.01483248,46307.0,46306.0,0.00041487]
[1641360859536,0.00483248,46307.0,46306.0,0.00041487]
[1641360860138,0.01283248,46307.0,46306.0,0.00041487]
[1641360861538,0.00483248,46307.0,46306.0,0.00041487]
[1641360861736,0.36030148,46307.0,46306.0,0.00041487]
[1641360862139,0.37030148,46307.0,46306.0,0.00041487]
[1641360863386,0.01483248,46307.0,46306.0,0.00041487]
[1641360863586,0.00483248,46307.0,46306.0,0.00041487]
[1641360864188,0.01383248,46307.0,46306.0,0.00041487]
[1641360865390,0.00483248,46307.0,46306.0,0.00041487]
[1641360866288,0.01383248,46307.0,46306.0,0.00041487]
[1641360867538,0.00483248,46307.0,46306.0,0.00041487]
[1641360868136,0.01383248,46307.0,46306.0,0.00041487]
[1641360869536,0.00483248,46307.0,46306.0,0.00041487]
[1641360870140,0.01383248,46307.0,46306.0,0.00041487]
[1641360871387,0.00483248,46307.0,46306.0,0.00041487]
[1641360872289,0.01383248,46307.0,46306.0,0.00041487]
[1641360873490,0.00483248,46307.0,46306.0,0.00041487]
[1641360874331,0.01383248,46307.0,46306.0,0.00041487]
[1641360875532,0.00483248,46307.0,46306.0,0.00041487]
[1641360876333,0.01383248,46307.0,46306.0,0.00041487]
[1641360877535,0.00483248,46307.0,46306.0,0.00041487]
[1641360878186,0.01383248,46307.0,46306.0,0.00041487]
[1641360879489,0.00483248,46307.0,46306.0,0.00041487]
[1641360880190,0.33811684,46307.0,46306.0,0.00041487]
[1641360880493,0.34711684,46307.0,46306.0,0.00041487]
[1641360881390,0.34211684,46307.0,46306.0,0.00041487]
[1641360881591,0.33311684,46307.0,46306.0,0.00041487]
[1641360882235,0.34211684,46307.0,46306.0,0.00041487]
[1641360882636,0.009,46307.0,46306.0,0.00041487]
[1641360883537,0.29864993,46307.0,46306.0,0.00041487]
[1641360884338,0.30864993,46307.0,46306.0,0.00041487]
[1641360884538,0.66411893,46307.0,46306.0,0.00041487]
[1641360885338,1.39269534,46307.0,46306.0,0.00041487]
[1641360885586,1.02722634,46307.0,46306.0,0.00041487]
[1641360886386,0.30664993,46307.0,46306.0,0.00041487]
[1641360887487,0.29864993,46307.0,46306.0,0.00041487]
[1641360887687,0.6589514,46307.0,46306.0,0.00041487]
[1641360887887,0.3034824,46307.0,46306.0,0.00041487]
[1641360888291,0.3114824,46307.0,46306.0,0.00041487]
[1641360889438,0.3034824,46307.0,46306.0,0.00041487]
[1641360890041,0.00483247,46307.0,46306.0,0.00041487]
[1641360890240,0.01283247,46307.0,46306.0,0.00041487]
[1641360891641,0.00483247,46307.0,46306.0,0.00041487]
[1641360892243,0.01183247,46307.0,46306.0,0.00041487]
[1641360893494,0.00483247,46307.0,46306.0,0.00041487]
[1641360894390,0.01183247,46307.0,46306.0,0.00041487]
[1641360895593,0.00483247,46307.0,46306.0,0.00041487]
[1641360896293,0.37830147,46307.0,46306.0,0.00041487]
[1641360896693,0.02283247,46307.0,46306.0,0.00041487]
[1641360897536,0.00483247,46307.0,46306.0,0.00041487]
[1641360898439,0.02083247,46307.0,46306.0,0.00041487]
[1641360899539,0.00483247,46307.0,46306.0,0.00041487]
[1641360900340,0.02183247,46307.0,46306.0,0.00041487]
[1641360901787,0.00483247,46307.0,46306.0,0.00041487]
[1641360902389,0.02183247,46307.0,46306.0,0.00041487]
[1641360903590,0.00483247,46307.0,46306.0,0.00041487]
[1641360904439,0.02183247,46307.0,46306.0,0.00041487]
[1641360905637,0.00483247,46307.0,46306.0,0.00041487]
[1641360906443,0.02283247,46307.0,46306.0,0.00041487]
[1641360907538,0.00483247,46307.0,46306.0,0.00041487]
[1641360908410,0.03383247,46307.0,46306.0,0.00041487]
[1641360909612,0.00483247,46307.0,46306.0,0.00041487]
[1641360910411,0.02683247,46307.0,46306.0,0.00041487]
[1641360912242,0.00483247,46307.0,46306.0,0.00041487]
[1641360912445,0.02183247,46307.0,46306.0,0.00041487]
[1641360913648,0.00483247,46307.0,46306.0,0.00041487]
[1641360914449,0.02383247,46307.0,46306.0,0.00041487]
[1641360915592,0.00483247,46307.0,46306.0,0.00041487]
[1641360915993,0.11799011,46307.0,46306.0,0.00041487]
[1641360916194,0.00483247,46307.0,46306.0,0.00041487]
[1641360916393,0.01983247,46307.0,46306.0,0.00041487]
[1641360917593,0.00483247,46307.0,46306.0,0.00041487]
[1641360918396,0.02183247,46307.0,46306.0,0.00041487]
[1641360920248,0.00483247,46307.0,46306.0,0.00041487]
[1641360920448,0.02183247,46307.0,46306.0,0.00041487]
[1641360922250,0.00483247,46307.0,46306.0,0.00041487]
[1641360922450,0.02183247,46307.0,46306.0,0.00041487]
[1641360923689,0.00483247,46307.0,46306.0,0.00041487]
[1641360924490,0.01883247,46307.0,46306.0,0.00041487]
[1641360925690,0.00483247,46307.0,46306.0,0.00041487]
[1641360926491,0.02083247,46307.0,46306.0,0.00041487]
[1641360927747,0.00483247,46307.0,46306.0,0.00041487]
[1641360928346,0.01283247,46307.0,46306.0,0.00041487]
[1641360928748,0.35853022,46307.0,46306.0,0.00041487]
[1641360929449,0.35853022,46307.0,46306.0,0.2302216]
[1641360929648,0.35053022,46307.0,46306.0,0.2302216]
[1641360936240,0.35053022,46307.0,46306.0,0.00041487]
[1641360937144,0.70725939,46307.0,46306.0,0.00041487]
[1641360937342,0.83504939,46307.0,46306.0,0.00041487]
[1641360937546,0.93504939,46307.0,46306.0,0.00041487]
[1641360937742,1.379446,46307.0,46290.0,0.24211904]
[1641360937944,0.30054039,46297.0,46290.0,0.24211904]
[1641360938196,0.30054039,46297.0,46281.0,0.816115]
[1641360938197,0.30054039,46297.0,46274.0,0.43203]
[1641360938391,0.80900939,46297.0,46278.0,0.24417922]
[1641360938590,1.15663654,46297.0,46278.0,0.5509861]
[1641360938891,1.15663654,46297.0,46280.0,0.108035]
[1641360939088,1.15663654,46297.0,46281.0,0.2947]
[1641360939089,0.10804127,46295.0,46281.0,0.2947]
[1641360939290,0.00126741,46292.0,46281.0,0.2947]
[1641360939489,0.81108382,46292.0,46281.0,0.2947]
[1641360939789,1.10641945,46292.0,46283.0,0.054019]
[1641360939992,1.10641945,46292.0,46285.0,0.054019]
[1641360940293,1.15641945,46292.0,46291.0,0.00674585]
[1641360940489,1.11641945,46292.0,46291.0,0.00674585]
[1641360940694,1.06641945,46292.0,46291.0,0.00674585]
[1641360941090,1.16641945,46292.0,46291.0,0.00674585]
[1641360941690,1.05641945,46292.0,46291.0,0.00674585]
[1641360941948,1.03268638,46292.0,46291.0,0.00674585]
[1641360942143,1.04917126,46292.0,46291.0,0.00674585]
[1641360942544,1.05817126,46292.0,46291.0,0.00674585]
[1641360943743,1.04917126,46292.0,46291.0,0.00674585]
[1641360944545,1.05917126,46292.0,46291.0,0.00674585]
[1641360945346,1.06400531,46292.0,46291.0,0.00674585]
[1641360945594,1.05400531,46292.0,46291.0,0.00674585]
[1641360946394,1.06400531,46292.0,46291.0,0.00674585]
[1641360946795,1.06802635,46292.0,46291.0,0.00674585]
[1641360946994,0.95384787,46292.0,46291.0,0.00674585]
[1641360947595,0.94384787,46292.0,46291.0,0.00674585]
[1641360948395,0.95484787,46292.0,46291.0,0.00674585]
[1641360948794,0.95484787,46292.0,46291.0,0.00600049]
[1641360948996,1.22396376,46292.0,46291.0,0.00600049]
[1641360949447,2.00976369,46292.0,46291.0,0.00600049]
[1641360949648,1.7296478,46292.0,46291.0,0.00600049]
[1641360949846,0.99787587,46292.0,46291.0,0.00600049]
[1641360950458,0.8986004,46292.0,46291.0,0.00600049]
[1641360950649,0.9206704,46292.0,46291.0,0.00600049]
[1641360951550,1.18370741,46292.0,46291.0,0.00600049]
[1641360951747,1.17270741,46292.0,46291.0,0.00600049]
[1641360951949,1.90452135,46292.0,46291.0,0.00600049]
[1641360952549,1.91752135,46292.0,46291.0,0.00600049]
[1641360953397,1.18570741,46292.0,46291.0,0.00600049]
[1641360954391,1.18670741,46292.0,46291.0,0.00600049]
[1641360955594,1.91852135,46292.0,46291.0,0.00600049]
[1641360955794,1.90452135,46292.0,46291.0,0.00600049]
[1641360956394,1.91752135,46292.0,46291.0,0.00600049]
[1641360957645,1.90452135,46292.0,46291.0,0.00600049]
[1641360958046,1.1775427,46292.0,46291.0,0.00600049]
[1641360958445,1.1885427,46292.0,46291.0,0.00600049]
[1641360958846,1.92035378,46292.0,46291.0,0.00600049]
[1641360959645,1.90935378,46292.0,46291.0,0.00600049]
[1641360960447,1.92335378,46292.0,46291.0,0.00600049]
[1641360961695,1.90935378,46292.0,46291.0,0.00600049]
[1641360962595,1.92235378,46292.0,46291.0,0.00600049]
[1641360963801,1.90935378,46292.0,46291.0,0.00600049]
[1641360964448,1.92435378,46292.0,46291.0,0.00600049]
[1641360964845,1.66131677,46292.0,46291.0,0.00600049]
[1641360965847,1.64631677,46292.0,46291.0,0.00600049]
[1641360966550,1.65931677,46292.0,46291.0,0.00600049]
[1641360966747,0.92750569,46292.0,46291.0,0.00600049]
[1641360966946,1.14822914,46292.0,46291.0,0.00600049]
[1641360967746,0.91450569,46292.0,46291.0,0.00600049]
[1641360968395,1.13502007,46292.0,46291.0,0.00600049]
[1641360968596,0.92750569,46292.0,46291.0,0.00600049]
[1641360968795,1.14959626,46292.0,46291.0,0.00600049]
[1641360968995,0.92750569,46292.0,46291.0,0.00600049]
[1641360969997,0.91450569,46292.0,46291.0,0.00600049]
[1641360970598,0.92750569,46292.0,46291.0,0.00600049]
[1641360971398,1.14825653,46292.0,46291.0,0.00600049]
[1641360971848,1.13491701,46292.0,46291.0,0.00600049]
[1641360972446,0.92750569,46292.0,46291.0,0.00600049]
[1641360973046,1.1477553,46292.0,46291.0,0.00600049]
[1641360973247,0.92750569,46292.0,46291.0,0.00600049]
[1641360973747,0.91450569,46292.0,46291.0,0.00600049]
[1641360974546,0.92850569,46292.0,46291.0,0.00600049]
[1641360975794,0.91450569,46292.0,46291.0,0.00600049]
[1641360976596,0.92850569,46292.0,46291.0,0.00600049]
[1641360978596,0.94250569,46292.0,46291.0,0.00600049]
[1641360979853,0.91450569,46292.0,46291.0,0.00600049]
[1641360980454,0.93150569,46292.0,46291.0,0.00600049]
[1641360981856,0.91450569,46292.0,46291.0,0.00600049]
[1641360982559,0.92850569,46292.0,46291.0,0.00600049]
[1641360982758,1.16359246,46292.0,46291.0,0.00600049]
[1641360983802,1.14959246,46292.0,46291.0,0.00600049]
[1641360984603,1.16359246,46292.0,46291.0,0.00600049]
[1641360985702,1.14959246,46292.0,46291.0,0.00600049]
[1641360986503,0.92850569,46292.0,46291.0,0.00600049]
[1641360987551,1.34850569,46292.0,46291.0,0.00600049]
[1641360987747,1.33450569,46292.0,46291.0,0.00600049]
[1641360987951,1.23450569,46292.0,46291.0,0.00600049]
[1641360988547,1.25150569,46292.0,46291.0,0.00600049]
[1641360989747,1.23450569,46292.0,46291.0,0.00600049]
[1641360990596,1.25250569,46292.0,46291.0,0.00600049]
[1641360991797,1.23450569,46292.0,46291.0,0.00600049]
[1641360992598,1.25250569,46292.0,46291.0,0.00600049]
[1641360993798,1.23450569,46292.0,46291.0,0.00600049]
[1641360994545,1.25250569,46292.0,46291.0,0.00600049]
[1641360995746,1.23450569,46292.0,46291.0,0.00600049]
[1641360996546,1.25250569,46292.0,46291.0,0.00600049]
[1641360997747,1.23450569,46292.0,46291.0,0.00600049]
[1641360998596,1.25150569,46292.0,46291.0,0.00600049]
[1641360999197,0.89603669,46292.0,46291.0,0.00600049]
[1641360999396,0.89603669,46292.0,46291.0,0.21508567]
[1641360999597,0.44183529,46292.0,46291.0,0.21508567]
[1641360999798,0.42483529,46292.0,46291.0,0.26338567]
[1641361000197,0.00483529,46292.0,46291.0,0.26338567]
[1641361000601,0.00483529,46292.0,46291.0,0.27438567]
[1641361000997,0.00483529,46292.0,46291.0,0.06530049]
[1641361001845,0.00483529,46292.0,46291.0,0.27230641]
[1641361002646,0.00483529,46292.0,46291.0,0.28330641]
[1641361003848,0.00483529,46292.0,46291.0,0.27230641]
[1641361004049,0.00483529,46292.0,46291.0,0.05430049]
[1641361004249,0.00483529,46292.0,46291.0,0.00600049]
[1641361004449,0.36030429,46292.0,46291.0,0.00600049]
[1641361004649,0.36830429,46292.0,46291.0,0.01600049]
[1641361005903,0.36030429,46292.0,46291.0,0.00600049]
[1641361006698,0.36830429,46292.0,46291.0,0.01500049]
[1641361007398,0.01283529,46292.0,46291.0,0.01500049]
[1641361007798,0.00483529,46292.0,46291.0,0.00600049]
[1641361008599,0.02783529,46292.0,46291.0,0.01500049]
[1641361009848,0.00483529,46292.0,46291.0,0.00600049]
[1641361010649,0.02283529,46292.0,46291.0,0.01500049]
[1641361011448,0.02110866,46292.0,46291.0,0.01500049]
[1641361011848,0.00310866,46292.0,46291.0,0.00600049]
[1641361012449,0.37750416,46294.0,46291.0,0.00600049]
[1641361012650,0.37750416,46294.0,46292.0,0.054013]
[1641361013097,0.32349238,46294.0,46292.0,0.054013]
[1641361013494,0.32349238,46294.0,46293.0,0.2124377]
[1641361014594,0.35349238,46294.0,46293.0,0.2194377]
[1641361015895,0.32349238,46294.0,46292.0,0.054013]
[1641361016695,0.35249238,46294.0,46292.0,0.062013]
[1641361018549,0.38149238,46294.0,46292.0,0.070013]
[1641361019749,0.38149238,46294.0,46292.0,0.062013]
[1641361019950,0.32349238,46294.0,46292.0,0.054013]
[1641361020350,0.32349238,46294.0,46291.0,0.05952546]
[1641361020601,0.3775048,46294.0,46291.0,0.05952546]
[1641361022003,0.3775048,46294.0,46291.0,0.05452546]
[1641361022201,0.3775048,46294.0,46291.0,0.10853746]
[1641361022402,0.32349238,46294.0,46291.0,0.10853746]
[1641361022604,0.33949238,46294.0,46291.0,0.06252546]
[1641361023805,0.33949238,46294.0,46291.0,0.05452546]
[1641361023806,0.32349238,46294.0,46291.0,0.05452546]
[1641361024208,0.32349238,46294.0,46292.0,0.054009]
[1641361024649,0.33249238,46294.0,46292.0,0.054009]
[1641361025853,0.32349238,46294.0,46291.0,0.05452546]